[Event "*** Titled Tuesday Blitz"]
[Site "Chess.com"]
[Date "2021.02.02"]
[Round "2"]
[White "Oligan22"]
[Black "kuban1991"]
[Result "0-1"]
[WhiteElo "2518"]
[BlackElo "2818"]
[TimeControl "180+1"]
[EndTime "10:18:02 PST"]
[Termination "kuban1991 won by resignation"]

1. e4 {[%clk 0:03:00.9]} 1... e6 {[%clk 0:02:59.5]} 2. d4 {[%clk 0:03:00.8]}
2... d5 {[%clk 0:02:59.8]} 3. Nc3 {[%clk 0:03:01.4]} 3... Bb4 {[%clk 0:02:59.2]}
4. e5 {[%clk 0:02:59.3]} 4... c5 {[%clk 0:02:59.2]} 5. a3 {[%clk 0:02:58.7]}
5... Bxc3+ {[%clk 0:02:59.6]} 6. bxc3 {[%clk 0:02:59.6]} 6... Nc6 {[%clk
0:03:00.3]} 7. Qg4 {[%clk 0:02:56.9]} 7... g6 {[%clk 0:03:00.2]} 8. Nf3 {[%clk
0:02:48.7]} 8... Bd7 {[%clk 0:02:59.6]} 9. h4 {[%clk 0:02:48.7]} 9... h6 {[%clk
0:02:59.2]} 10. Bd3 {[%clk 0:02:43.5]} 10... c4 {[%clk 0:02:58.3]} 11. Be2
{[%clk 0:02:31.2]} 11... Qa5 {[%clk 0:02:57.3]} 12. Bd2 {[%clk 0:02:30.8]} 12...
O-O-O {[%clk 0:02:57.6]} 13. Qf4 {[%clk 0:02:30.8]} 13... Rh7 {[%clk 0:02:57.8]}
14. O-O {[%clk 0:02:28]} 14... Rf8 {[%clk 0:02:57.6]} 15. a4 {[%clk 0:02:22.6]}
15... f5 {[%clk 0:02:52.5]} 16. exf6 {[%clk 0:02:21.1]} 16... Nxf6 {[%clk
0:02:51.4]} 17. Qg3 {[%clk 0:02:10.3]} 17... g5 {[%clk 0:02:30]} 18. hxg5 {[%clk
0:02:08.7]} 18... Ne4 {[%clk 0:02:29.3]} 19. Qh4 {[%clk 0:01:55.5]} 19... Rxf3
{[%clk 0:02:19.1]} 20. Bxf3 {[%clk 0:01:34.1]} 20... Nxd2 {[%clk 0:02:19.2]} 21.
g6 {[%clk 0:01:33.4]} 21... Rg7 {[%clk 0:01:53.9]} 22. Qxh6 {[%clk 0:01:31.5]}
22... Nxf3+ {[%clk 0:01:54]} 23. gxf3 {[%clk 0:01:32.4]} 23... Rg8 {[%clk
0:01:54.8]} 24. Kh2 {[%clk 0:01:01.7]} 24... Qc7+ {[%clk 0:01:46.6]} 25. f4
{[%clk 0:00:58.6]} 25... Ne7 {[%clk 0:01:45]} 26. Rg1 {[%clk 0:00:56.5]} 26...
Nf5 {[%clk 0:01:34]} 27. Qg5 {[%clk 0:00:46.4]} 27... Be8 {[%clk 0:01:33.8]} 28.
Qg4 {[%clk 0:00:15]} 28... Rxg6 {[%clk 0:01:32.7]} 29. Qf3 {[%clk 0:00:15.4]}
29... Qh7+ {[%clk 0:01:32.9]} 0-1

[Event "*** Titled Tuesday Blitz"]
[Site "Chess.com"]
[Date "2021.02.02"]
[Round "2"]
[White "esapunov"]
[Black "MVM2008"]
[Result "1-0"]
[WhiteElo "2606"]
[BlackElo "2122"]
[TimeControl "180+1"]
[EndTime "10:18:04 PST"]
[Termination "esapunov won by checkmate"]

1. c4 {[%clk 0:03:00.9]} 1... Nf6 {[%clk 0:03:00]} 2. Nf3 {[%clk 0:03:00.5]}
2... e6 {[%clk 0:03:00]} 3. Nc3 {[%clk 0:03:00.3]} 3... d5 {[%clk 0:03:00.1]} 4.
d4 {[%clk 0:03:00.4]} 4... Bb4 {[%clk 0:03:00.3]} 5. Qa4+ {[%clk 0:02:59.3]}
5... Nc6 {[%clk 0:02:57.9]} 6. Bg5 {[%clk 0:02:59.7]} 6... dxc4 {[%clk
0:01:47.2]} 7. e4 {[%clk 0:02:54.8]} 7... Bd7 {[%clk 0:01:11.4]} 8. Qc2 {[%clk
0:02:42.1]} 8... b5 {[%clk 0:01:09.3]} 9. e5 {[%clk 0:02:40.1]} 9... h6 {[%clk
0:01:08]} 10. Bh4 {[%clk 0:02:40.2]} 10... g5 {[%clk 0:01:05.7]} 11. Nxg5 {[%clk
0:02:33.3]} 11... Nd5 {[%clk 0:00:42.5]} 12. Nf3 {[%clk 0:02:05.9]} 12... Nxd4
{[%clk 0:00:30.6]} 13. Qe4 {[%clk 0:02:02.6]} 13... Nxf3+ {[%clk 0:00:09.3]} 14.
gxf3 {[%clk 0:02:00.7]} 14... Nxc3 {[%clk 0:00:08.5]} 15. bxc3 {[%clk
0:01:57.8]} 15... Bxc3+ {[%clk 0:00:08.4]} 16. Ke2 {[%clk 0:01:57.4]} 16... Qc8
{[%clk 0:00:03.6]} 17. Rc1 {[%clk 0:01:48.6]} 17... b4 {[%clk 0:00:03.7]} 18.
Rg1 {[%clk 0:01:39.9]} 18... Rb8 {[%clk 0:00:01.4]} 19. Bf6 {[%clk 0:01:38]}
19... Qa6 {[%clk 0:00:01.5]} 20. Bxh8 {[%clk 0:01:30.5]} 20... Qxa2+ {[%clk
0:00:01.5]} 21. Rc2 {[%clk 0:01:28.9]} 21... Qb1 {[%clk 0:00:01.7]} 22. Rg8+
{[%clk 0:01:27.3]} 22... Ke7 {[%clk 0:00:01.2]} 23. Bf6# {[%clk 0:01:27.4]} 1-0

[Event "*** Titled Tuesday Blitz"]
[Site "Chess.com"]
[Date "2021.02.02"]
[Round "2"]
[White "johnathan113"]
[Black "Beca95"]
[Result "0-1"]
[WhiteElo "2567"]
[BlackElo "2894"]
[TimeControl "180+1"]
[EndTime "10:18:13 PST"]
[Termination "Beca95 won on time"]

1. d4 {[%clk 0:03:00.9]} 1... Nf6 {[%clk 0:02:59.6]} 2. Nc3 {[%clk 0:03:01.4]}
2... d6 {[%clk 0:02:58.8]} 3. e4 {[%clk 0:03:00.9]} 3... e5 {[%clk 0:02:59.1]}
4. Nf3 {[%clk 0:03:00.7]} 4... Nbd7 {[%clk 0:02:58.5]} 5. Bc4 {[%clk 0:02:58.4]}
5... h6 {[%clk 0:02:58.6]} 6. g4 {[%clk 0:02:49.4]} 6... Nxg4 {[%clk 0:02:51.2]}
7. Rg1 {[%clk 0:02:46.9]} 7... exd4 {[%clk 0:02:49.8]} 8. Nxd4 {[%clk
0:02:14.1]} 8... Nge5 {[%clk 0:02:46.8]} 9. Be2 {[%clk 0:02:13]} 9... c6 {[%clk
0:02:24.7]} 10. Nf5 {[%clk 0:02:06.3]} 10... Nc5 {[%clk 0:01:39.3]} 11. Bf4
{[%clk 0:01:21.7]} 11... g6 {[%clk 0:01:37.1]} 12. Ne3 {[%clk 0:01:03.3]} 12...
Be6 {[%clk 0:01:31.2]} 13. Qd2 {[%clk 0:01:03]} 13... b5 {[%clk 0:01:29.4]} 14.
O-O-O {[%clk 0:00:53.3]} 14... b4 {[%clk 0:01:29.3]} 15. Nb1 {[%clk 0:00:53.3]}
15... Qa5 {[%clk 0:01:28.4]} 16. Qd4 {[%clk 0:00:45.3]} 16... Ncd7 {[%clk
0:01:21.7]} 17. Bc4 {[%clk 0:00:30.8]} 17... c5 {[%clk 0:01:21.2]} 18. Qd2
{[%clk 0:00:04.7]} 18... Bxc4 {[%clk 0:01:12.3]} 0-1

[Event "*** Titled Tuesday Blitz"]
[Site "Chess.com"]
[Date "2021.02.02"]
[Round "2"]
[White "Kobalia"]
[Black "Piotrek1979"]
[Result "1-0"]
[WhiteElo "2685"]
[BlackElo "2339"]
[TimeControl "180+1"]
[EndTime "10:18:14 PST"]
[Termination "Kobalia won on time"]

1. e4 {[%clk 0:02:56.8]} 1... c5 {[%clk 0:02:59.2]} 2. Nf3 {[%clk 0:02:55.1]}
2... Nc6 {[%clk 0:02:57.6]} 3. Bb5 {[%clk 0:02:54.1]} 3... g6 {[%clk 0:02:56.2]}
4. Bxc6 {[%clk 0:02:54.2]} 4... bxc6 {[%clk 0:02:56.2]} 5. O-O {[%clk
0:02:53.2]} 5... Bg7 {[%clk 0:02:56.2]} 6. Re1 {[%clk 0:02:53.7]} 6... d6 {[%clk
0:02:56.4]} 7. c3 {[%clk 0:02:53.4]} 7... Qc7 {[%clk 0:02:49.4]} 8. d4 {[%clk
0:02:52.9]} 8... cxd4 {[%clk 0:02:49.2]} 9. cxd4 {[%clk 0:02:53.2]} 9... Nf6
{[%clk 0:02:44.7]} 10. Nc3 {[%clk 0:02:52]} 10... O-O {[%clk 0:02:43.3]} 11. h3
{[%clk 0:02:52.1]} 11... Rb8 {[%clk 0:02:32.7]} 12. b3 {[%clk 0:02:51.7]} 12...
Bb7 {[%clk 0:01:58.2]} 13. Bb2 {[%clk 0:02:47.3]} 13... Rfd8 {[%clk 0:01:52.8]}
14. Rc1 {[%clk 0:02:46.5]} 14... Qa5 {[%clk 0:01:50.9]} 15. Qc2 {[%clk 0:02:46]}
15... e5 {[%clk 0:01:48.1]} 16. dxe5 {[%clk 0:02:45.2]} 16... dxe5 {[%clk
0:01:47.5]} 17. Na4 {[%clk 0:02:45.4]} 17... Nh5 {[%clk 0:01:23.3]} 18. g3
{[%clk 0:02:37.7]} 18... Bc8 {[%clk 0:01:17.6]} 19. Kg2 {[%clk 0:02:37.3]} 19...
Bd7 {[%clk 0:00:44.8]} 20. Qc5 {[%clk 0:02:36.1]} 20... Qxc5 {[%clk 0:00:39.9]}
21. Rxc5 {[%clk 0:02:35.4]} 21... f6 {[%clk 0:00:39.3]} 22. Ra5 {[%clk
0:02:31.7]} 22... Rb7 {[%clk 0:00:30.4]} 23. Nc5 {[%clk 0:02:30.7]} 23... Rc7
{[%clk 0:00:30.4]} 24. Rd1 {[%clk 0:02:28.9]} 24... Bxh3+ {[%clk 0:00:22.7]} 25.
Kxh3 {[%clk 0:02:28.4]} 25... Rxd1 {[%clk 0:00:23.6]} 26. Na6 {[%clk 0:02:14.5]}
26... Rcd7 {[%clk 0:00:22]} 27. Nb4 {[%clk 0:02:14]} 27... Rb1 {[%clk
0:00:09.7]} 28. Ba3 {[%clk 0:02:13]} 28... Rdd1 {[%clk 0:00:09.5]} 29. Nxc6
{[%clk 0:02:09.8]} 29... g5 {[%clk 0:00:06.6]} 30. Kg4 {[%clk 0:02:01.5]} 30...
Rh1 {[%clk 0:00:05]} 31. Rxa7 {[%clk 0:01:59.4]} 31... f5+ {[%clk 0:00:04.7]}
32. Kxf5 {[%clk 0:01:58.4]} 32... g4 {[%clk 0:00:04.2]} 33. Ne7+ {[%clk
0:01:57.1]} 33... Kf7 {[%clk 0:00:04.2]} 34. Ng5+ {[%clk 0:01:52]} 34... Ke8
{[%clk 0:00:03.5]} 35. Ke6 {[%clk 0:01:51.7]} 1-0

[Event "*** Titled Tuesday Blitz"]
[Site "Chess.com"]
[Date "2021.02.02"]
[Round "2"]
[White "Vasily85"]
[Black "DenisQ"]
[Result "0-1"]
[WhiteElo "2409"]
[BlackElo "2666"]
[TimeControl "180+1"]
[EndTime "10:18:20 PST"]
[Termination "DenisQ won by resignation"]

1. d4 {[%clk 0:03:00.9]} 1... Nf6 {[%clk 0:02:58.1]} 2. Bg5 {[%clk 0:02:59.9]}
2... e6 {[%clk 0:02:56.5]} 3. e4 {[%clk 0:02:54.2]} 3... h6 {[%clk 0:02:55.4]}
4. Bxf6 {[%clk 0:02:54.5]} 4... Qxf6 {[%clk 0:02:55.5]} 5. c3 {[%clk 0:02:53.3]}
5... b6 {[%clk 0:02:47.1]} 6. Bd3 {[%clk 0:02:44.5]} 6... Bb7 {[%clk 0:02:46.9]}
7. Nd2 {[%clk 0:02:44.6]} 7... g6 {[%clk 0:02:42.3]} 8. Ngf3 {[%clk 0:02:41]}
8... Bg7 {[%clk 0:02:42.3]} 9. Qe2 {[%clk 0:02:29.6]} 9... O-O {[%clk
0:02:41.6]} 10. h4 {[%clk 0:02:26.2]} 10... d6 {[%clk 0:02:39.6]} 11. h5 {[%clk
0:02:10]} 11... g5 {[%clk 0:02:38.3]} 12. e5 {[%clk 0:02:08.4]} 12... Qe7 {[%clk
0:02:27.4]} 13. Ne4 {[%clk 0:01:32.3]} 13... Nd7 {[%clk 0:02:22.3]} 14. Nfxg5
{[%clk 0:01:16.9]} 14... dxe5 {[%clk 0:02:12.1]} 15. Nf3 {[%clk 0:01:08.3]}
15... exd4 {[%clk 0:02:11]} 16. cxd4 {[%clk 0:01:03.2]} 16... Qb4+ {[%clk
0:01:57.9]} 17. Nc3 {[%clk 0:00:59.4]} 17... Rad8 {[%clk 0:01:34.7]} 18. O-O
{[%clk 0:00:56.5]} 18... Bxf3 {[%clk 0:01:29.1]} 19. Qxf3 {[%clk 0:00:56.1]}
19... Qxd4 {[%clk 0:01:27.6]} 20. Rad1 {[%clk 0:00:51.5]} 20... Ne5 {[%clk
0:01:25.6]} 21. Qb7 {[%clk 0:00:17.7]} 21... Nxd3 {[%clk 0:01:24.3]} 22. Qxc7
{[%clk 0:00:18.2]} 22... Qc5 {[%clk 0:01:19.9]} 23. Qg3 {[%clk 0:00:15.5]} 23...
Nxb2 {[%clk 0:01:14.3]} 24. Ne4 {[%clk 0:00:13.8]} 24... Qe5 {[%clk 0:01:11.3]}
0-1

[Event "*** Titled Tuesday Blitz"]
[Site "Chess.com"]
[Date "2021.02.02"]
[Round "2"]
[White "RaneshRatnesan"]
[Black "Azde"]
[Result "0-1"]
[WhiteElo "2162"]
[BlackElo "2424"]
[TimeControl "180+1"]
[EndTime "10:18:22 PST"]
[Termination "Azde won by resignation"]

1. d4 {[%clk 0:03:00.9]} 1... Nf6 {[%clk 0:02:59.4]} 2. Bf4 {[%clk 0:03:01.4]}
2... e6 {[%clk 0:02:59.5]} 3. e3 {[%clk 0:03:01.1]} 3... d5 {[%clk 0:02:59.7]}
4. c3 {[%clk 0:02:59]} 4... Bd6 {[%clk 0:02:59.7]} 5. Bg3 {[%clk 0:02:59.2]}
5... O-O {[%clk 0:02:59.6]} 6. Nd2 {[%clk 0:02:59.1]} 6... c5 {[%clk 0:03:00.1]}
7. Bd3 {[%clk 0:02:58.8]} 7... Nc6 {[%clk 0:03:00.5]} 8. Ngf3 {[%clk 0:02:58.3]}
8... b6 {[%clk 0:03:00.3]} 9. Qe2 {[%clk 0:02:54.5]} 9... Bb7 {[%clk 0:03:00.5]}
10. a3 {[%clk 0:02:40.8]} 10... Ne7 {[%clk 0:02:57.7]} 11. Ne5 {[%clk
0:02:39.6]} 11... Nf5 {[%clk 0:02:56.9]} 12. Bf4 {[%clk 0:02:32.7]} 12... Ne4
{[%clk 0:02:33.3]} 13. g4 {[%clk 0:02:12.9]} 13... Nh4 {[%clk 0:02:27.1]} 14.
Bg3 {[%clk 0:01:28.3]} 14... Ng6 {[%clk 0:02:18.2]} 15. f4 {[%clk 0:01:24.1]}
15... f6 {[%clk 0:02:14.5]} 16. Nxg6 {[%clk 0:01:12.8]} 16... hxg6 {[%clk
0:02:15.4]} 17. O-O-O {[%clk 0:01:06]} 17... Qe7 {[%clk 0:02:02]} 18. Qg2 {[%clk
0:00:56.7]} 18... f5 {[%clk 0:01:50.7]} 19. Kb1 {[%clk 0:00:38.3]} 19... c4
{[%clk 0:01:47.1]} 20. Bc2 {[%clk 0:00:31.2]} 20... Bxa3 {[%clk 0:01:44.4]} 21.
bxa3 {[%clk 0:00:30.8]} 21... Nxc3+ {[%clk 0:01:40.2]} 22. Kb2 {[%clk
0:00:29.1]} 22... Nxd1+ {[%clk 0:01:16.9]} 23. Rxd1 {[%clk 0:00:30]} 23... c3+
{[%clk 0:01:16.2]} 24. Kxc3 {[%clk 0:00:28.7]} 24... Qxa3+ {[%clk 0:01:16.1]}
25. Nb3 {[%clk 0:00:29.6]} 25... Rfc8+ {[%clk 0:01:11.2]} 26. Kd2 {[%clk
0:00:29.5]} 26... Qb4+ {[%clk 0:00:54.6]} 0-1

[Event "*** Titled Tuesday Blitz"]
[Site "Chess.com"]
[Date "2021.02.02"]
[Round "2"]
[White "MF1966Idrisov"]
[Black "canary2016"]
[Result "1-0"]
[WhiteElo "2381"]
[BlackElo "2015"]
[TimeControl "180+1"]
[EndTime "10:18:24 PST"]
[Termination "MF1966Idrisov won by checkmate"]

1. Nf3 {[%clk 0:03:00.9]} 1... d5 {[%clk 0:02:57.9]} 2. b3 {[%clk 0:03:01.1]}
2... Nf6 {[%clk 0:02:56.7]} 3. Bb2 {[%clk 0:03:01.4]} 3... c6 {[%clk 0:02:53.3]}
4. e3 {[%clk 0:03:01.4]} 4... Bg4 {[%clk 0:02:50.7]} 5. d4 {[%clk 0:03:01.4]}
5... e6 {[%clk 0:02:48.9]} 6. Be2 {[%clk 0:03:01.5]} 6... Bd6 {[%clk 0:02:48.6]}
7. O-O {[%clk 0:03:01.3]} 7... O-O {[%clk 0:02:48.3]} 8. Ne5 {[%clk 0:02:53.6]}
8... Bf5 {[%clk 0:02:42.6]} 9. c4 {[%clk 0:02:49.1]} 9... Nbd7 {[%clk
0:02:41.6]} 10. f4 {[%clk 0:02:47.9]} 10... Qc7 {[%clk 0:02:40.5]} 11. Nc3
{[%clk 0:02:46.8]} 11... Ne4 {[%clk 0:02:39.2]} 12. Rc1 {[%clk 0:02:42.3]} 12...
f6 {[%clk 0:02:36.1]} 13. Nf3 {[%clk 0:02:27.8]} 13... Qd8 {[%clk 0:02:22.4]}
14. Nh4 {[%clk 0:02:23.1]} 14... Bg6 {[%clk 0:02:16.1]} 15. Nxg6 {[%clk
0:02:21.3]} 15... hxg6 {[%clk 0:02:16.2]} 16. Nxe4 {[%clk 0:02:20.8]} 16... dxe4
{[%clk 0:02:15.3]} 17. d5 {[%clk 0:02:13.5]} 17... Bc5 {[%clk 0:01:59.7]} 18.
Bd4 {[%clk 0:02:04.3]} 18... exd5 {[%clk 0:01:57.3]} 19. cxd5 {[%clk 0:02:04]}
19... Ba3 {[%clk 0:01:50]} 20. dxc6 {[%clk 0:01:57.2]} 20... Bxc1 {[%clk
0:01:27.9]} 21. Bc4+ {[%clk 0:01:48.2]} 21... Kh8 {[%clk 0:01:25.4]} 22. Qg4
{[%clk 0:01:33.1]} 22... Qa5 {[%clk 0:00:50.7]} 23. f5 {[%clk 0:01:16.1]} 23...
Bxe3+ {[%clk 0:00:14.5]} 24. Bxe3 {[%clk 0:01:13.6]} 24... Qxf5 {[%clk
0:00:04.7]} 25. Rxf5 {[%clk 0:01:11.2]} 25... gxf5 {[%clk 0:00:04.8]} 26. Qh5#
{[%clk 0:01:08.4]} 1-0

[Event "*** Titled Tuesday Blitz"]
[Site "Chess.com"]
[Date "2021.02.02"]
[Round "2"]
[White "sergiochess83"]
[Black "doons21"]
[Result "1/2-1/2"]
[WhiteElo "2856"]
[BlackElo "2560"]
[TimeControl "180+1"]
[EndTime "10:18:25 PST"]
[Termination "Game drawn by repetition"]

1. e4 {[%clk 0:03:00.9]} 1... e6 {[%clk 0:02:55.8]} 2. d4 {[%clk 0:03:00.3]}
2... d5 {[%clk 0:02:56.4]} 3. Nc3 {[%clk 0:03:01]} 3... Bb4 {[%clk 0:02:57]} 4.
e5 {[%clk 0:03:00.4]} 4... Ne7 {[%clk 0:02:57.4]} 5. a3 {[%clk 0:02:59.8]} 5...
Bxc3+ {[%clk 0:02:57.8]} 6. bxc3 {[%clk 0:03:00.7]} 6... c5 {[%clk 0:02:58.5]}
7. h4 {[%clk 0:03:01.3]} 7... Qa5 {[%clk 0:02:52]} 8. Bd2 {[%clk 0:03:00.6]}
8... Qa4 {[%clk 0:02:52.5]} 9. h5 {[%clk 0:02:59.4]} 9... h6 {[%clk 0:02:51.9]}
10. Nf3 {[%clk 0:02:52.7]} 10... cxd4 {[%clk 0:02:36.9]} 11. cxd4 {[%clk
0:02:34.4]} 11... b6 {[%clk 0:02:35.9]} 12. Bb4 {[%clk 0:01:52.5]} 12... Ba6
{[%clk 0:02:17.2]} 13. Bxa6 {[%clk 0:01:37.4]} 13... Nxa6 {[%clk 0:02:09.9]} 14.
Bxe7 {[%clk 0:01:21.6]} 14... Kxe7 {[%clk 0:02:10.8]} 15. O-O {[%clk 0:01:21.6]}
15... Rhc8 {[%clk 0:02:05.7]} 16. Qd3 {[%clk 0:01:21.8]} 16... Nc7 {[%clk
0:01:43.9]} 17. Rab1 {[%clk 0:01:06.6]} 17... Ne8 {[%clk 0:01:43.6]} 18. Rfc1
{[%clk 0:00:54.3]} 18... Rc4 {[%clk 0:01:41.6]} 19. Kh2 {[%clk 0:00:26.8]} 19...
Rac8 {[%clk 0:01:41.8]} 20. c3 {[%clk 0:00:26.9]} 20... Qa5 {[%clk 0:01:25.8]}
21. Rb3 {[%clk 0:00:26.5]} 21... Qa4 {[%clk 0:01:19]} 22. Rcb1 {[%clk
0:00:24.1]} 22... Qc6 {[%clk 0:01:15.9]} 23. Rc1 {[%clk 0:00:23.6]} 23... Qa4
{[%clk 0:01:01.2]} 24. Rcb1 {[%clk 0:00:23.2]} 24... Qc6 {[%clk 0:00:55.5]} 25.
Rc1 {[%clk 0:00:23.1]} 25... Qa4 {[%clk 0:00:51.4]} 1/2-1/2

[Event "*** Titled Tuesday Blitz"]
[Site "Chess.com"]
[Date "2021.02.02"]
[Round "2"]
[White "ftorodent"]
[Black "Yurovskykh_Oleksandr"]
[Result "1-0"]
[WhiteElo "2704"]
[BlackElo "2480"]
[TimeControl "180+1"]
[EndTime "10:18:26 PST"]
[Termination "ftorodent won by resignation"]

1. d4 {[%clk 0:03:00.9]} 1... d5 {[%clk 0:02:59.4]} 2. c4 {[%clk 0:03:00.9]}
2... dxc4 {[%clk 0:02:58.1]} 3. Nf3 {[%clk 0:03:00.5]} 3... Nf6 {[%clk
0:02:57.5]} 4. e3 {[%clk 0:03:00.7]} 4... e6 {[%clk 0:02:55.7]} 5. Bxc4 {[%clk
0:03:00.5]} 5... c5 {[%clk 0:02:55.9]} 6. O-O {[%clk 0:03:00.6]} 6... Nc6 {[%clk
0:02:55.9]} 7. Qe2 {[%clk 0:02:52.7]} 7... cxd4 {[%clk 0:02:55.5]} 8. Rd1 {[%clk
0:02:52.5]} 8... Be7 {[%clk 0:02:55.3]} 9. exd4 {[%clk 0:02:52.5]} 9... O-O
{[%clk 0:02:55.1]} 10. Nc3 {[%clk 0:02:52.7]} 10... Na5 {[%clk 0:02:55.3]} 11.
Bd3 {[%clk 0:02:52]} 11... b6 {[%clk 0:02:54.6]} 12. Bg5 {[%clk 0:02:38.2]}
12... Bb7 {[%clk 0:02:53.7]} 13. Ne5 {[%clk 0:02:37.5]} 13... Rc8 {[%clk
0:02:51.8]} 14. Rac1 {[%clk 0:02:02.9]} 14... Nd5 {[%clk 0:02:43.5]} 15. Bd2
{[%clk 0:01:45.4]} 15... Nxc3 {[%clk 0:02:40.2]} 16. bxc3 {[%clk 0:01:38.3]}
16... Nc6 {[%clk 0:02:36.4]} 17. Be4 {[%clk 0:01:28.9]} 17... Qc7 {[%clk
0:02:23.4]} 18. Bf4 {[%clk 0:01:28.3]} 18... Bd6 {[%clk 0:02:21.9]} 19. Rd3
{[%clk 0:00:59]} 19... Nxe5 {[%clk 0:02:12.6]} 20. dxe5 {[%clk 0:00:55]} 20...
Bc5 {[%clk 0:02:07.5]} 21. Bxh7+ {[%clk 0:00:49.3]} 21... Kxh7 {[%clk
0:01:39.2]} 22. Qh5+ {[%clk 0:00:49.1]} 22... Kg8 {[%clk 0:01:39.1]} 23. Rh3
{[%clk 0:00:39.3]} 23... Bxf2+ {[%clk 0:01:28.6]} 24. Kh1 {[%clk 0:00:35.9]}
24... Bxg2+ {[%clk 0:00:47.2]} 25. Kxg2 {[%clk 0:00:34.9]} 25... Qc6+ {[%clk
0:00:45]} 26. Kxf2 {[%clk 0:00:34.7]} 26... Qc5+ {[%clk 0:00:45.3]} 27. Be3
{[%clk 0:00:32.5]} 1-0

[Event "*** Titled Tuesday Blitz"]
[Site "Chess.com"]
[Date "2021.02.02"]
[Round "2"]
[White "Demeter39"]
[Black "catzapto"]
[Result "1-0"]
[WhiteElo "2396"]
[BlackElo "2101"]
[TimeControl "180+1"]
[EndTime "10:18:26 PST"]
[Termination "Demeter39 won on time"]

1. Nf3 {[%clk 0:03:00.9]} 1... c5 {[%clk 0:02:59.5]} 2. e4 {[%clk 0:02:35]} 2...
e6 {[%clk 0:02:48.2]} 3. c3 {[%clk 0:02:34.1]} 3... d5 {[%clk 0:02:41.2]} 4.
exd5 {[%clk 0:02:32.9]} 4... exd5 {[%clk 0:02:39.8]} 5. Bb5+ {[%clk 0:02:30.9]}
5... Nc6 {[%clk 0:02:39.6]} 6. O-O {[%clk 0:02:30.1]} 6... Nf6 {[%clk
0:02:38.3]} 7. d4 {[%clk 0:02:30.3]} 7... Be7 {[%clk 0:02:23.2]} 8. dxc5 {[%clk
0:02:29.5]} 8... O-O {[%clk 0:02:23.5]} 9. Be3 {[%clk 0:02:19]} 9... Ng4 {[%clk
0:02:11.2]} 10. Bd4 {[%clk 0:02:18]} 10... Nxd4 {[%clk 0:02:07.8]} 11. cxd4
{[%clk 0:02:17.3]} 11... a6 {[%clk 0:02:04.1]} 12. Bd3 {[%clk 0:02:16.1]} 12...
b6 {[%clk 0:02:01.9]} 13. b4 {[%clk 0:02:14.2]} 13... Bf6 {[%clk 0:01:38.6]} 14.
Nc3 {[%clk 0:02:04]} 14... Bb7 {[%clk 0:01:18.1]} 15. h3 {[%clk 0:02:01.9]}
15... Nh6 {[%clk 0:01:17.4]} 16. Na4 {[%clk 0:01:56.1]} 16... bxc5 {[%clk
0:01:12.7]} 17. bxc5 {[%clk 0:01:55.9]} 17... Rc8 {[%clk 0:01:02.3]} 18. Nb6
{[%clk 0:01:55.3]} 18... Rc6 {[%clk 0:01:02]} 19. Rb1 {[%clk 0:01:47.4]} 19...
Re8 {[%clk 0:00:48.1]} 20. Qa4 {[%clk 0:01:43.1]} 20... Rce6 {[%clk 0:00:18.9]}
21. Bxa6 {[%clk 0:01:37.4]} 21... Bxa6 {[%clk 0:00:17.6]} 22. Qxa6 {[%clk
0:01:37.6]} 22... Nf5 {[%clk 0:00:16.4]} 23. Qd3 {[%clk 0:01:34.7]} 23... g6
{[%clk 0:00:13.9]} 24. a4 {[%clk 0:01:34.2]} 24... Qc7 {[%clk 0:00:11.5]} 25. a5
{[%clk 0:01:33.4]} 25... Re4 {[%clk 0:00:09.9]} 26. Nxd5 {[%clk 0:01:31.1]}
26... Qc6 {[%clk 0:00:03.5]} 27. Nxf6+ {[%clk 0:01:25.7]} 27... Qxf6 {[%clk
0:00:03.4]} 28. Rb6 {[%clk 0:01:19.2]} 1-0

[Event "*** Titled Tuesday Blitz"]
[Site "Chess.com"]
[Date "2021.02.02"]
[Round "2"]
[White "Trickster_Pony"]
[Black "TokChess"]
[Result "0-1"]
[WhiteElo "1442"]
[BlackElo "2458"]
[TimeControl "180+1"]
[EndTime "10:18:28 PST"]
[Termination "TokChess won by resignation"]

1. c4 {[%clk 0:03:00.9]} 1... c5 {[%clk 0:03:00.2]} 2. g3 {[%clk 0:03:00.4]}
2... Nf6 {[%clk 0:03:01.1]} 3. Bg2 {[%clk 0:03:00.5]} 3... g6 {[%clk 0:03:01.4]}
4. Nc3 {[%clk 0:03:00.7]} 4... Bg7 {[%clk 0:03:02.3]} 5. d3 {[%clk 0:03:00.7]}
5... O-O {[%clk 0:03:02.5]} 6. e4 {[%clk 0:03:00.5]} 6... Nc6 {[%clk 0:03:02]}
7. Nge2 {[%clk 0:03:00.9]} 7... Ne8 {[%clk 0:03:02.5]} 8. O-O {[%clk 0:03:00.1]}
8... Nc7 {[%clk 0:03:02.8]} 9. a4 {[%clk 0:02:58.8]} 9... Ne6 {[%clk 0:03:03.7]}
10. f4 {[%clk 0:02:46.3]} 10... Ncd4 {[%clk 0:03:04.6]} 11. Be3 {[%clk
0:02:43.9]} 11... Nxe2+ {[%clk 0:03:03.5]} 12. Qxe2 {[%clk 0:02:43.8]} 12... Nd4
{[%clk 0:03:02.1]} 13. Qf2 {[%clk 0:02:40.7]} 13... d6 {[%clk 0:02:59.4]} 14.
Nb5 {[%clk 0:02:17.3]} 14... Nc6 {[%clk 0:02:54.8]} 15. f5 {[%clk 0:02:12.5]}
15... Ne5 {[%clk 0:02:35.2]} 16. Qe2 {[%clk 0:02:06.8]} 16... Bd7 {[%clk
0:02:32.6]} 17. Nc3 {[%clk 0:01:59.5]} 17... e6 {[%clk 0:02:24.7]} 18. fxe6
{[%clk 0:01:48.2]} 18... fxe6 {[%clk 0:02:21.4]} 19. Rxf8+ {[%clk 0:01:40.5]}
19... Qxf8 {[%clk 0:02:22.3]} 20. Rf1 {[%clk 0:01:40.3]} 20... Qe7 {[%clk
0:02:17.4]} 21. b3 {[%clk 0:01:17.7]} 21... Nxc4 {[%clk 0:02:07]} 22. dxc4
{[%clk 0:01:13.6]} 22... Bxc3 {[%clk 0:02:06.8]} 23. Qd3 {[%clk 0:01:05.1]}
23... Be5 {[%clk 0:02:05.3]} 24. Bf4 {[%clk 0:01:04.1]} 24... Bd4+ {[%clk
0:01:58.3]} 25. Kh1 {[%clk 0:01:00]} 25... Rf8 {[%clk 0:01:56.9]} 26. a5 {[%clk
0:00:50.3]} 26... Bc6 {[%clk 0:01:56]} 27. b4 {[%clk 0:00:43.8]} 27... e5 {[%clk
0:01:47.8]} 28. Bh6 {[%clk 0:00:36.9]} 28... Rxf1+ {[%clk 0:01:44.5]} 29. Qxf1
{[%clk 0:00:37.8]} 29... cxb4 {[%clk 0:01:30.1]} 30. Bh3 {[%clk 0:00:37.5]}
30... Bxe4+ {[%clk 0:01:29.1]} 31. Bg2 {[%clk 0:00:35.9]} 31... Bxg2+ {[%clk
0:01:20.2]} 32. Kxg2 {[%clk 0:00:36.8]} 32... Qf7 {[%clk 0:01:15.4]} 33. Qe2
{[%clk 0:00:28.4]} 33... b3 {[%clk 0:01:11.3]} 34. Qg4 {[%clk 0:00:27.9]} 34...
Qf2+ {[%clk 0:01:09.3]} 35. Kh3 {[%clk 0:00:27.9]} 35... Qf5 {[%clk 0:01:09.4]}
0-1